{"text_format":"3","workbook":"xlsx","n_sheets":12,"sheets":["IRP","Iniciar","InfoBasicas","IaaS - USN","PaaS - USN","SaaS - USN","SGORN","SMRC","SMBD","Treinamento","Planilha1","Resultado"],"not_rendered":{"charts":4,"images":4,"macros":1,"defined_names":11},"read":"whole","date_system":"1900"}

{"sheet":"IRP","index":0,"n_rows":16,"n_cols":4,"rows_kept":16,"merged":[[15,3,15,16],[18,3,18,9],[19,3,19,9]]}
{"$rows_empty":11}
[{"$nulls":3},"Intenção de Registro de Preços - IRP nº  16/2020"]
[]
[{"$nulls":3},"AQUISIÇÃO CENTRALIZADA DE SERVIÇOS DE COMPUTAÇÃO EM NUVEM "]
[]
[{"$nulls":3},"Esta pasta de trabalho é composta por dez abas (planilhas)  que permitem ao usuário informar por serviço, as quantidades necessárias visando estimar o volume de serviços de computação em nuvem projetados para 24 meses."]

{"sheet":"Iniciar","index":1,"n_rows":16,"n_cols":2,"rows_kept":16,"merged":[[1,1,14,12],[15,1,15,12],[16,1,16,12]]}
[]
[null,"Introdução:\nPretende-se disponibilizar o Registro de Preços para contratação de empresa especializada para prestação de serviços gerenciados de computação em nuvem, sob o modelo de cloud broker (integrador) de multi-nuvem, que inclui a concepção, projeto, provisionamento, configuração, migração, suporte, manutenção e gestão de topologias de serviços em dois ou mais provedores de nuvem pública. \n\nO objeto será adjudicado por menor preço global, conforme especificações constantes neste Termo de Referência e licitado em lote único, conforme segue:\n\n1 - Serviços de Computação em nuvem – Infraestrutura como Serviço (IaaS) - Unidade de Serviço de Computação em Nuvem -USN \n2- Serviços de Computação em nuvem – Plataforma como Serviço (PaaS) - Unidade de Serviço de Computação em Nuvem -USN \n3 - Serviços de Computação em nuvem – Software como Serviço (SaaS) - Unidade de Serviço de Computação em Nuvem -USN \n4 – Serviço de Gerenciamento e Operação de recursos em nuvem - Instância gerenciada por mês \n5 - Serviço de Migração de Recursos Computacionais - Instância de Computação migrada \n6 - Serviço de Migração de Banco de dados - Instância de Banco de Dados migrada \n7 - Treinamento - Turma de treinamento \n"]
{"$rows_empty":13}
[null,"Atenção: Deve-se utilizar este documento para cálculo do volume a ser contratado de USN e demais serviços previstos. Este documento deve ser encaminhado a Central de compras exclusivamente por meio do e-mail central.tecnologia@planejamento.gov.br contendo todas as informações obrigatórias informadas. O não preenchimento ou envio dessa planilha comprometará a participação do órgão da referida Intenção de registro de preços."]

{"sheet":"InfoBasicas","index":2,"n_rows":43,"n_cols":8,"rows_kept":43,"merged":[[2,1,2,5],[5,2,5,5],[6,2,6,5],[9,2,9,5],[10,1,10,5],[20,1,20,5],[32,1,32,5]]}
[{"$nulls":7},"Para orientar o processo de estimativa do volume e possibilitar que o órgão gerenciador da ata de  Registro de Preços instrua o processo de compra com maior detalhamento das informações relacionadas à demanda do órgão, responda as questões a seguir com o maior detalhamento possível."]
[]
[null,"Informações Gerais sobre a estrutura das cargas de trabalho a serem migradas para Nuvem"]
[]
[null,"Identificação"]
[null,"Nome do Órgão*:"]
[null,"Código e Descrição da UASG*:"]
[null,"Nome do Responsável Técnico*:"]
[null,"Telefone do Responsável Técnico*"]
[null,"E-mail do Responsável Técnico*"]
[null,"(*) Campos  Obrigatórios"]
[null,"Informações Gerais"]
[null,"Qual estratégia Organizacional para utilização de nuvem?*:","Selecionar"]
[]
[null,"O órgão possui informações classificadas como sigilosas?*","Selecionar",{"$f":"IF(C15=\"SIM\",IF(C13=\"Migração completa para nuvem pública\",\"Atenção: Informações sigilosas não podem ser tratadas em ambiente de Nuvem segundo a NC.14/2018 GSI/PR\",\"\"),\"\")","v":""}]
[]
[null,"Possui equipe técnica com conhecimento em ambiente Cloud?*","Selecionar"]
[]
[null,"Já possui recursos em ambiente de nuvem pública?*","Selecionar"]
[]
[null,"(*) Campos  Obrigatórios"]
[null,"Informações Técnicas"]
[null,"Perfil das Cargas de trabalho","Quantidade atual","Quantidade esperada para os próximos 24 meses"]
[null,"Banco de dados*"]
[null,"Aplicações que utilizam MYSQL"]
[null,"Aplicações que utilizam ORACLE"]
[null,"Aplicações que utilizam POSTGRES"]
[null,"Aplicações que utilizam SQLSERVER"]
[null,"Espaço storage (GB) MYSQL"]
[null,"Espaço storage (GB) ORACLE"]
[null,"Espaço storage (GB) POSTGRES"]
[null,"Espaço storage (GB) SQLSERVER"]
[null,"(*) Campos  Obrigatórios"]
[null,"VIrtualização Utilizada","Quantidade atual","Quantidade esperada para os próximos 24 meses"]
[null,"VMWARE"]
[null,"CITRIX"]
[null,"HYPER-V"]
[null,"NUTANIX"]
[null,"KVM REDHAT"]
[]
[null,"Arquitetura","Quantidade atual","Quantidade esperada para os próximos 24 meses"]
[null,"Aplicações utilizando Containers"]
[null,"Aplicações utilizando Microserviços"]

{"sheet":"IaaS - USN","index":3,"n_rows":78,"n_cols":10,"rows_kept":78,"merged":[[2,1,2,8],[79,1,79,7],[80,1,80,5],[81,1,81,5]]}
[{"$nulls":9},"****Preencher somente as colunas Quantidade Mensal (G) e Justificativa (I)****"]
[]
[null,"Serviços de Computação - IaaS",{"$nulls":7},"Instruções"]
[]
[null,"Item","Descrição do serviço","Forma de Uso","Unidade","Valor USN ","Quantidade Mensal","Volume mensal de USN","Justificativa / Memória de cálculo","Observações para preenchimento"]
[null,"Código","Recursos de Computação"]
[null,1,"Máquina Virtual Linux - provisionado com 1 vCPU e 2 GB de memória RAM, reservada por 1 ano","reservada 1 ano","instância/hora",0.0283,null,{"$f":"G7*F7","v":{"v":0,"d":"0.00"}},null,"Informe a quantidade de instâncias e multiplique por 720 horas no mês."]
[null,2,"Máquina Virtual Linux Corporativo- provisionado com 1 vCPU e 2 GB de memória RAM, reservada por 1 ano","reservada 1 ano","instância/hora",0.0894,null,{"v":0,"d":"0.00"},null,"Informe a quantidade de instâncias e multiplique por 720 horas no mês."]
[null,3,"Máquina Virtual Windows - provisionado com 1 vCPU e 2 GB de memória RAM, reservada por 1 ano","reservada 1 ano","instância/hora",0.0673,null,{"v":0,"d":"0.00"},null,"Informe a quantidade de instâncias e multiplique por 720 horas no mês."]
[null,4,"Máquina Virtual Linux - provisionado com 2 vCPU e 4 GB de memória RAM, reservada por 1 ano","reservada 1 ano","instância/hora",{"v":0.05,"d":"0.0500"},null,{"v":0,"d":"0.00"},null,"Informe a quantidade de instâncias e multiplique por 720 horas no mês."]
[null,5,"Máquina Virtual Linux Corporativo- provisionado com 2 vCPU e 4 GB de memória RAM, reservada por 1 ano","reservada 1 ano","instância/hora",0.1104,null,{"v":0,"d":"0.00"},null,"Informe a quantidade de instâncias e multiplique por 720 horas no mês."]
[null,6,"Máquina Virtual Windows - provisionado com 2 vCPU e 4 GB de memória RAM, reservada por 1 ano","reservada 1 ano","instância/hora",0.1064,null,{"v":0,"d":"0.00"},null,"Informe a quantidade de instâncias e multiplique por 720 horas no mês."]
[null,7,"Máquina Virtual Linux - provisionado com 2 vCPU e 8 GB de memória RAM, reservada por 1 ano","reservada 1 ano","instância/hora",0.0617,null,{"v":0,"d":"0.00"},null,"Informe a quantidade de instâncias e multiplique por 720 horas no mês."]
[null,8,"Máquina Virtual Linux Corporativo- provisionado com 2 vCPU e 8 GB de memória RAM, reservada por 1 ano","reservada 1 ano","instância/hora",0.1129,null,{"v":0,"d":"0.00"},null,"Informe a quantidade de instâncias e multiplique por 720 horas no mês."]
[null,9,"Máquina Virtual Windows - provisionado com 2 vCPU e 8 GB de memória RAM, reservada por 1 ano","reservada 1 ano","instância/hora",0.1259,null,{"v":0,"d":"0.00"},null,"Informe a quantidade de instâncias e multiplique por 720 horas no mês."]
[null,10,"Máquina Virtual Linux - provisionado com 4 vCPU e 16 GB de memória RAM, reservada por 1 ano","reservada 1 ano","instância/hora",0.1235,null,{"v":0,"d":"0.00"},null,"Informe a quantidade de instâncias e multiplique por 720 horas no mês."]
[null,11,"Máquina Virtual Linux Corporativo- provisionado com 4 vCPU e 16 GB de memória RAM, reservada por 1 ano","reservada 1 ano","instância/hora",0.1842,null,{"v":0,"d":"0.00"},null,"Informe a quantidade de instâncias e multiplique por 720 horas no mês."]
[null,12,"Máquina Virtual Windows - provisionado com 4 vCPU e 16 GB de memória RAM, reservada por 1 ano","reservada 1 ano","instância/hora",0.2217,null,{"v":0,"d":"0.00"},null,"Informe a quantidade de instâncias e multiplique por 720 horas no mês."]
[null,13,"Máquina Virtual Linux - provisionado com 8 vCPU e 32 GB de memória RAM, reservada por 1 ano","reservada 1 ano","instância/hora",0.2471,null,{"v":0,"d":"0.00"},null,"Informe a quantidade de instâncias e multiplique por 720 horas no mês."]
[null,14,"Máquina Virtual Linux Corporativo- provisionado com 8 vCPU e 32 GB de memória RAM, reservada por 1 ano","reservada 1 ano","instância/hora",0.3465,null,{"v":0,"d":"0.00"},null,"Informe a quantidade de instâncias e multiplique por 720 horas no mês."]
[null,15,"Máquina Virtual Windows - provisionado com 8 vCPU e 32 GB de memória RAM, reservada por 1 ano","reservada 1 ano","instância/hora",0.4101,null,{"v":0,"d":"0.00"},null,"Informe a quantidade de instâncias e multiplique por 720 horas no mês."]
[null,16,"Máquina Virtual Linux - provisionado com 16 vCPU e 64 GB de memória RAM, reservada por 1 ano","reservada 1 ano","instância/hora",0.5098,null,{"v":0,"d":"0.00"},null,"Informe a quantidade de instâncias e multiplique por 720 horas no mês."]
[null,17,"Máquina Virtual Linux Corporativo- provisionado com 16 vCPU e 64 GB de memória RAM, reservada por 1 ano","reservada 1 ano","instância/hora",0.6164,null,{"v":0,"d":"0.00"},null,"Informe a quantidade de instâncias e multiplique por 720 horas no mês."]
[null,18,"Máquina Virtual Windows - provisionado com 16 vCPU e 64 GB de memória RAM, reservada por 1 ano","reservada 1 ano","instância/hora",0.9957,null,{"v":0,"d":"0.00"},null,"Informe a quantidade de instâncias e multiplique por 720 horas no mês."]
[null,19,"Máquina Virtual Linux - provisionado com 32 vCPU e 128 GB de memória RAM, reservada por 1 ano","reservada 1 ano","instância/hora",1.2708,null,{"v":0,"d":"0.00"},null,"Informe a quantidade de instâncias e multiplique por 720 horas no mês."]
[null,20,"Máquina Virtual Linux Corporativo- provisionado com 32 vCPU e 128 GB de memória RAM, reservada por 1 ano","reservada 1 ano","instância/hora",1.3602,null,{"v":0,"d":"0.00"},null,"Informe a quantidade de instâncias e multiplique por 720 horas no mês."]
[null,21,"Máquina Virtual Windows - provisionado com 32 vCPU e 128 GB de memória RAM, reservada por 1 ano","reservada 1 ano","instância/hora",2.2615,null,{"v":0,"d":"0.00"},null,"Informe a quantidade de instâncias e multiplique por 720 horas no mês."]
[null,22,"Máquina Virtual Linux - provisionado com 1 vCPU e 2 GB de memória RAM, por demanda","demanda","instância/hora",0.0417,null,{"v":0,"d":"0.00"},null,"Informe a quantidade de instâncias e multiplique pela quantidade de horas estimadas no mês."]
[null,23,"Máquina Virtual Linux Corporativo- provisionado com 1 vCPU e 2 GB de memória RAM, por demanda","demanda","instância/hora",0.1055,null,{"v":0,"d":"0.00"},null,"Informe a quantidade de instâncias e multiplique pela quantidade de horas estimadas no mês."]
[null,24,"Máquina Virtual Windows - provisionado com 1 vCPU e 2 GB de memória RAM, por demanda","demanda","instância/hora",0.0708,null,{"v":0,"d":"0.00"},null,"Informe a quantidade de instâncias e multiplique pela quantidade de horas estimadas no mês."]
[null,25,"Máquina Virtual Linux - provisionado com 2 vCPU e 4 GB de memória RAM, por demanda","demanda","instância/hora",0.0757,null,{"v":0,"d":"0.00"},null,"Informe a quantidade de instâncias e multiplique pela quantidade de horas estimadas no mês."]
[null,26,"Máquina Virtual Linux Corporativo- provisionado com 2 vCPU e 4 GB de memória RAM, por demanda","demanda","instância/hora",0.1428,null,{"v":0,"d":"0.00"},null,"Informe a quantidade de instâncias e multiplique pela quantidade de horas estimadas no mês."]
[null,27,"Máquina Virtual Windows - provisionado com 2 vCPU e 4 GB de memória RAM, por demanda","demanda","instância/hora",0.1266,null,{"v":0,"d":"0.00"},null,"Informe a quantidade de instâncias e multiplique pela quantidade de horas estimadas no mês."]
[null,28,"Máquina Virtual Linux - provisionado com 2 vCPU e 8 GB de memória RAM, por demanda","demanda","instância/hora",0.1012,null,{"v":0,"d":"0.00"},null,"Informe a quantidade de instâncias e multiplique pela quantidade de horas estimadas no mês."]
[null,29,"Máquina Virtual Linux Corporativo- provisionado com 2 vCPU e 8 GB de memória RAM, por demanda","demanda","instância/hora",0.1561,null,{"v":0,"d":"0.00"},null,"Informe a quantidade de instâncias e multiplique pela quantidade de horas estimadas no mês."]
[null,30,"Máquina Virtual Windows - provisionado com 2 vCPU e 8 GB de memória RAM, por demanda","demanda","instância/hora",0.1582,null,{"v":0,"d":"0.00"},null,"Informe a quantidade de instâncias e multiplique pela quantidade de horas estimadas no mês."]
[null,31,"Máquina Virtual Linux - provisionado com 4 vCPU e 16 GB de memória RAM, por demanda","demanda","instância/hora",0.2008,null,{"v":0,"d":"0.00"},null,"Informe a quantidade de instâncias e multiplique pela quantidade de horas estimadas no mês."]
[null,32,"Máquina Virtual Linux Corporativo- provisionado com 4 vCPU e 16 GB de memória RAM, por demanda","demanda","instância/hora",0.2782,null,{"v":0,"d":"0.00"},null,"Informe a quantidade de instâncias e multiplique pela quantidade de horas estimadas no mês."]
[null,33,"Máquina Virtual Windows - provisionado com 4 vCPU e 16 GB de memória RAM, por demanda","demanda","instância/hora",0.3012,null,{"v":0,"d":"0.00"},null,"Informe a quantidade de instâncias e multiplique pela quantidade de horas estimadas no mês."]
[null,34,"Máquina Virtual Linux - provisionado com 8 vCPU e 32 GB de memória RAM, por demanda","demanda","instância/hora",0.4015,null,{"v":0,"d":"0.00"},null,"Informe a quantidade de instâncias e multiplique pela quantidade de horas estimadas no mês."]
[null,35,"Máquina Virtual Linux Corporativo- provisionado com 8 vCPU e 32 GB de memória RAM, por demanda","demanda","instância/hora",0.5136,null,{"v":0,"d":"0.00"},null,"Informe a quantidade de instâncias e multiplique pela quantidade de horas estimadas no mês."]
[null,36,"Máquina Virtual Windows - provisionado com 8 vCPU e 32 GB de memória RAM, por demanda","demanda","instância/hora",0.5658,null,{"v":0,"d":"0.00"},null,"Informe a quantidade de instâncias e multiplique pela quantidade de horas estimadas no mês."]
[null,37,"Máquina Virtual Linux - provisionado com 16 vCPU e 64 GB de memória RAM, por demanda","demanda","instância/hora",0.8288,null,{"v":0,"d":"0.00"},null,"Informe a quantidade de instâncias e multiplique pela quantidade de horas estimadas no mês."]
[null,38,"Máquina Virtual Linux Corporativo- provisionado com 16 vCPU e 64 GB de memória RAM, por demanda","demanda","instância/hora",0.9409,null,{"v":0,"d":"0.00"},null,"Informe a quantidade de instâncias e multiplique pela quantidade de horas estimadas no mês."]
[null,39,"Máquina Virtual Windows - provisionado com 16 vCPU e 64 GB de memória RAM, por demanda","demanda","instância/hora",1.4325,null,{"v":0,"d":"0.00"},null,"Informe a quantidade de instâncias e multiplique pela quantidade de horas estimadas no mês."]
[null,40,"Máquina Virtual Linux - provisionado com 32 vCPU e 128 GB de memória RAM, por demanda","demanda","instância/hora",{"v":2.049,"d":"2.0490"},null,{"v":0,"d":"0.00"},null,"Informe a quantidade de instâncias e multiplique pela quantidade de horas estimadas no mês."]
[null,41,"Máquina Virtual Linux Corporativo- provisionado com 32 vCPU e 128 GB de memória RAM, por demanda","demanda","instância/hora",2.1113,null,{"v":0,"d":"0.00"},null,"Informe a quantidade de instâncias e multiplique pela quantidade de horas estimadas no mês."]
[null,42,"Máquina Virtual Windows - provisionado com 32 vCPU e 128 GB de memória RAM, por demanda","demanda","instância/hora",3.2377,null,{"v":0,"d":"0.00"},null,"Informe a quantidade de instâncias e multiplique pela quantidade de horas estimadas no mês."]
[null,"Código","Armazenamento (por demanda)"]
[null,43,"Serviço de armazenamento de blocos (SSD)","demanda","Gigabyte/Mês",0.2409,null,{"$f":"G50*F50","v":{"v":0,"d":"0.00"}},null,"Informe a quantidade estimada em GB por mês"]
[null,44,"Serviço de armazenamento de blocos (HDD)","demanda","Gigabyte/Mês",0.0654,null,{"$f":"G51*F51","v":{"v":0,"d":"0.00"}},null,"Informe a quantidade estimada em GB por mês"]
[null,45,"Serviço de armazenamento de objetos","demanda","Gigabyte/Mês",0.0308,null,{"$f":"G52*F52","v":{"v":0,"d":"0.00"}},null,"Informe a quantidade estimada em GB por mês"]
[null,"Código","Rede (por demanda)"]
[null,46,"Tráfego de saída da rede","demanda","Gigabyte/Mês",0.1167,null,{"$f":"G54*F54","v":{"v":0,"d":"0.00"}},null,"Informe a quantidade estimada em GB por mês"]
[null,47,"Tráfego de rede interna entre zonas","demanda","Gigabyte/Mês",{"v":0.01,"d":"0.0100"},null,{"v":0,"d":"0.00"},null,"Informe a quantidade estimada em GB por mês"]
[null,48,"Tráfego de rede do balanceador de carga","demanda","Gigabyte/Mês",0.0342,null,{"v":0,"d":"0.00"},null,"Informe a quantidade estimada em GB por mês"]
[null,49,"Serviço de balanceamento de carga ","demanda","Regra/Por Hora",0.0264,null,{"v":0,"d":"0.00"},null,"Informe a quantidade de regras e multiplique pela quantidade de horas estimadas no mês."]
[null,50,"Serviço de balanceamento de carga utilizando gerenciador de tráfego por DNS*","demanda","DNS Queries Milhão/Mês",{"v":0.57,"d":"0.5700"},null,{"v":0,"d":"0.00"},null,"Informe a quantidade estimada de milhão de queries por mês"]
[null,51,"Serviço de balanceamento de carga utilizando gerenciador de tráfego por endpoint*","demanda","Endpoint /mês",{"v":0.5,"d":"0.5000"},null,{"v":0,"d":"0.00"},null,"Informe a quantidade estimada em Endpoints por mês"]
[null,52,"Porta de conexão de fibra 1Gbps","demanda","Unidade/hora",{"v":0.504,"d":"0.5040"},null,{"v":0,"d":"0.00"},null,"Informe a quantidade de unidades e multiplique pela quantidade de horas estimadas no mês."]
[null,53,"Porta de conexão de fibra 10Gbps","demanda","Unidade/hora",{"v":3.004,"d":"3.0040"},null,{"v":0,"d":"0.00"},null,"Informe a quantidade de unidades e multiplique pela quantidade de horas estimadas no mês."]
[null,54,"Serviço de DNS – Hospedagem de zonas","demanda","Zona/Mês",0.3803,null,{"v":0,"d":"0.00"},null,"Informe a quantidade estimada de zona por mês"]
[null,55,"Serviço de DNS – Consultas","demanda","Milhão de Consultas/Mês",{"v":0.375,"d":"0.3750"},null,{"v":0,"d":"0.00"},null,"Informe a quantidade estimada de milhão de consulta por mês"]
[null,56,"Serviço de VPN","demanda","Gigabyte/Mês",{"v":0.08,"d":"0.0800"},null,{"v":0,"d":"0.00"},null,"Informe a quantidade estimada em GB por mês"]
[null,57,"VPN Gateway","demanda","Túnel/hora",{"v":0.052,"d":"0.0520"},null,{"v":0,"d":"0.00"},null,"Informe a quantidade de túnel e multiplique pela quantidade de horas estimadas no mês."]
[null,58,"IP Público","demanda","Unidade/Hora",0.0051,null,{"v":0,"d":"0.00"},null,"Informe a quantidade de unidades e multiplique pela quantidade de horas estimadas no mês."]
[null,"Código","Segurança (por demanda)"]
[null,59,"Serviço de Cofre de Senhas","demanda","Por Chave/Mês",0.2517,null,{"$f":"G68*F68","v":{"v":0,"d":"0.00"}},null,"Informe a quantidade estimada de chaves por mês"]
[null,60,"Serviço Web Aplication Firewall por ACL **","demanda","ACL/mês",{"v":5,"d":"5.0000"},null,{"v":0,"d":"0.00"},null,"Informe a quantidade estimada de ACL por mês"]
[null,61,"Serviço Web Aplication Firewall por Regra **","demanda","Por RegraMês",{"v":1,"d":"1.0000"},null,{"v":0,"d":"0.00"},null,"Informe a quantidade estimada de regras por mês"]
[null,62,"Serviço Web Aplication Firewall por hora **","demanda","Gateway/hora",0.3802,null,{"v":0,"d":"0.00"},null,"Informe a quantidade de gateways e multiplique pela quantidade de horas estimadas no mês. "]
[null,63,"Serviço de backup","demanda","Instância/Mês",{"v":5,"d":"5.0000"},null,{"v":0,"d":"0.00"},null,"Informe a quantidade estimada em instância por mês"]
[null,64,"Serviço de armazenamento de Backup","demanda","Gigabyte/Mês",0.0207,null,{"v":0,"d":"0.00"},null,"Informe a quantidade estimada em GB por mês"]
[null,65,"Serviço de Autenticação (Integração com AD) adquirido por usuário ***","demanda","Usuário / Mês",1.2575,null,{"v":0,"d":"0.00"},null,"Informe a quantidade estimada por usuário no mês"]
[null,66,"Serviço de Autenticação (Integração com AD) adquirido por domínio***","demanda","Domínios por Hora",0.3305,null,{"v":0,"d":"0.00"},null,"Informe a quantidade de domínimos e multiplique pela quantidace de horas estimadas no mês. "]
[null,67,"Serviço de Auditoria e Análise de Logs","demanda","Gigabyte/Mês",2.1075,null,{"v":0,"d":"0.00"},null,"Informe a quantidade estimada em GB por mês"]
[{"$nulls":5},"Total Mensal",null,{"$f":"SUM(H6:H76)","v":0},{"$f":"SUM(H6:H76)","v":{"v":0,"d":"R$0.00"}}]
[{"$nulls":5},"Total para 24 meses",null,{"$f":"H77*24","v":{"v":0,"d":"0.00"}},{"$f":"I77*24","v":{"v":0,"d":"R$0.00"}}]

{"sheet":"PaaS - USN","index":4,"n_rows":37,"n_cols":10,"rows_kept":37,"merged":[[2,1,2,8]]}
[]
[{"$nulls":9},"***Preencher somente as colunas Quantidade Mensal (G) e Justificativa (I)***"]
[null,"Serviços de Computação - PaaS",{"$nulls":7},"Instruções"]
[]
[null,"Item","Descrição do serviço","Forma de Uso","Unidade","Valor USN ","Quantidade Mensal","Volume mensal de USN","Justificativa / Memória de cálculo","Observações para preenchimento"]
[null,"Código","Serviços de Banco de Dados"]
[null,68,"Serviço Gerenciado de Banco de Dados MySQL com 4 vCPU e 16 GB de memória RAM ","demanda","instância/hora",0.7879,null,{"$f":"F7*G7","v":{"v":0,"d":"0.00"}},null,"Informe a quantidade de instâncias e multiplique pela quantidade de horas estimadas no mês."]
[null,69,"Serviço Gerenciado de Banco de Dados MySQL com 8 vCPU e 32 GB de memória RAM ","demanda","instância/hora",1.5751,null,{"v":0,"d":"0.00"},null,"Informe a quantidade de instâncias e multiplique pela quantidade de horas estimadas no mês."]
[null,70,"Serviço Gerenciado de Banco de Dados MySQL com 16 vCPU e 64 GB de memória RAM ","demanda","instância/hora",{"v":2.882,"d":"2.8820"},null,{"v":0,"d":"0.00"},null,"Informe a quantidade de instâncias e multiplique pela quantidade de horas estimadas no mês."]
[null,71,"Serviço Gerenciado de Banco de Dados MySQL com 32 vCPU e 128 de GB memória RAM ","demanda","instância/hora",5.5358,null,{"v":0,"d":"0.00"},null,"Informe a quantidade de instâncias e multiplique pela quantidade de horas estimadas no mês."]
[null,72,"Serviço Gerenciado de Banco de Dados PostgreSQL com 4 vCPU e 16 de memória RAM ","demanda","instância/hora",0.6706,null,{"v":0,"d":"0.00"},null,"Informe a quantidade de instâncias e multiplique pela quantidade de horas estimadas no mês."]
[null,73,"Serviço Gerenciado de Banco de Dados PostgreSQL com 8 vCPU e 32 de memória RAM ","demanda","instância/hora",1.3402,null,{"v":0,"d":"0.00"},null,"Informe a quantidade de instâncias e multiplique pela quantidade de horas estimadas no mês."]
[null,74,"Serviço Gerenciado de Banco de Dados PostgreSQL com 16 vCPU e 64 de memória RAM ","demanda","instância/hora",2.4657,null,{"v":0,"d":"0.00"},null,"Informe a quantidade de instâncias e multiplique pela quantidade de horas estimadas no mês."]
[null,75,"Serviço Gerenciado de Banco de Dados PostgreSQL com 32 vCPU e 128 de memória RAM ","demanda","instância/hora",4.5024,null,{"v":0,"d":"0.00"},null,"Informe a quantidade de instâncias e multiplique pela quantidade de horas estimadas no mês."]
[null,76,"Serviço Gerenciado de Banco de Dados SQLServer com 4 vCPU e 16 de memória RAM ","demanda","instância/hora",{"v":1.298,"d":"1.2980"},null,{"v":0,"d":"0.00"},null,"Informe a quantidade de instâncias e multiplique pela quantidade de horas estimadas no mês."]
[null,77,"Serviço Gerenciado de Banco de Dados SQLServer com 8 vCPU e 32 de memória RAM ","demanda","instância/hora",2.5922,null,{"v":0,"d":"0.00"},null,"Informe a quantidade de instâncias e multiplique pela quantidade de horas estimadas no mês."]
[null,78,"Serviço Gerenciado de Banco de Dados SQLServer com 16 vCPU e 64 de memória RAM ","demanda","instância/hora",5.1859,null,{"v":0,"d":"0.00"},null,"Informe a quantidade de instâncias e multiplique pela quantidade de horas estimadas no mês."]
[null,79,"Serviço Gerenciado de Banco de Dados SQLServer com 32 vCPU e 128 de memória RAM ","demanda","instância/hora",12.2987,null,{"v":0,"d":"0.00"},null,"Informe a quantidade de instâncias e multiplique pela quantidade de horas estimadas no mês."]
[null,80,"Serviço Gerenciado de Banco de Dados ORACLE com 4 vCPU e 16 de memória RAM ","demanda","instância/hora",0.9181,null,{"v":0,"d":"0.00"},null,"Informe a quantidade de instâncias e multiplique pela quantidade de horas estimadas no mês."]
[null,81,"Serviço Gerenciado de Banco de Dados ORACLE com 8 vCPU e 32 de memória RAM ","demanda","instância/hora",1.8362,null,{"v":0,"d":"0.00"},null,"Informe a quantidade de instâncias e multiplique pela quantidade de horas estimadas no mês."]
[null,82,"Serviço Gerenciado de Banco de Dados ORACLE com 16 vCPU e 64 de memória RAM ","demanda","instância/hora",3.6724,null,{"v":0,"d":"0.00"},null,"Informe a quantidade de instâncias e multiplique pela quantidade de horas estimadas no mês."]
[null,"Código","Armazenamento de Banco de Dados"]
[null,83,"Armazenamento de Banco de Dados MySQL","demanda","GB/Mês",0.2579,null,{"$f":"F23*G23","v":{"v":0,"d":"0.00"}},null,"Informe a quantidade estimada em GB por mês"]
[null,84,"Armazenamento de Banco de Dados PostgreSQL","demanda","GB/Mês",0.2945,null,{"$f":"F24*G24","v":{"v":0,"d":"0.00"}},null,"Informe a quantidade estimada em GB por mês"]
[null,85,"Armazenamento de Banco de Dados SQLServer","demanda","GB/Mês",0.2483,null,{"$f":"F25*G25","v":{"v":0,"d":"0.00"}},null,"Informe a quantidade estimada em GB por mês"]
[null,86,"Armazenamento de Banco de Dados Oracle","demanda","GB/Mês",0.1308,null,{"$f":"F26*G26","v":{"v":0,"d":"0.00"}},null,"Informe a quantidade estimada em GB por mês"]
[null,"Código","Serviço de Cache Gerenciado"]
[null,87,"Serviço de Cache Gerenciado de memória RAM, com no mínimo 6GB ","demanda","Unidade/hora",0.3242,null,{"$f":"F28*G28","v":{"v":0,"d":"0.00"}},null,"Informe a quantidade de unidades e multiplique pela quantidade de horas estimadas no mês."]
[null,88,"Serviço de Cache Gerenciado de memória RAM, com no mínimo 26GB ","demanda","Unidade/hora",0.9522,null,{"$f":"F29*G29","v":{"v":0,"d":"0.00"}},null,"Informe a quantidade de unidades e multiplique pela quantidade de horas estimadas no mês."]
[null,89,"Serviço de Cache Gerenciado de memória RAM, com no mínimo 52GB ","demanda","Unidade/hora",1.8314,null,{"$f":"F30*G30","v":{"v":0,"d":"0.00"}},null,"Informe a quantidade de unidades e multiplique pela quantidade de horas estimadas no mês."]
[null,"Código","Serviços Container ( por demanda)"]
[null,90,"Serviço Gerenciado de Kubernetes","demanda","instância/hora",{"v":0.22,"d":"0.2200"},null,{"$f":"F32*G32","v":{"v":0,"d":"0.00"}},null,"Informe a quantidade de instâncias e multiplique pela quantidade de horas estimadas no mês."]
[null,"Código","Serviço de Computação sem servidor - Serverless (por demanda)"]
[null,91,"Serverless - Requisições das funções","demanda","Milhão de requisições/mês",{"v":0.242,"d":"0.2420"},null,{"$f":"F34*G34","v":{"v":0,"d":"0.00"}},null,"Informe a quantidade de milhões de requisições estimadas por mês para todas as funções previstas. Ex: 200 milhões de requisições / mês"]
[null,92,"Serverless - Tempo de Execução das funções ","demanda","GB/segundo",{"v":1.3e-05,"d":"0.000013"},null,{"$f":"F35*G35","v":{"v":0,"d":"0.00"}},null,"Informe a quantidadede GB estimada por segundo e multiple pela quantidade de segundos estimados de consumo ao mês. Ex. 2 GB x 8000 segundos ao mês"]
[{"$nulls":5},"Total Mensal",null,{"$f":"SUM(H7:H35)","v":0},{"$f":"SUM(H7:H35)","v":0}]
[{"$nulls":5},"Total para 24 meses",null,{"$f":"H36*24","v":{"v":0,"d":"0.00"}},{"$f":"I36*24","v":0}]

{"sheet":"SaaS - USN","index":5,"n_rows":12,"n_cols":11,"rows_kept":12,"merged":[[2,1,2,9],[2,10,2,11],[3,10,3,11],[4,8,4,9],[4,10,4,11],[5,8,5,9],[5,10,5,11],[6,8,6,9],[6,10,6,11],[7,8,7,9],[7,10,7,11],[8,8,8,9],[8,10,8,11],[9,8,9,9],[9,10,9,11],[10,10,10,11],[11,10,11,11]]}
[]
[{"$nulls":10},"***Preencher somente as colunas Quantidade Mensal (G) e Justificativa (I)***"]
[null,"Serviços de Computação - SaaS",{"$nulls":8},"Instruções"]
[]
[null,"Item","Descrição do serviço","Forma de Uso","Unidade","Valor USN ","Quantidade Mensal","Volume mensal de USN","Justificativa / Memória de cálculo",null,"Observações para preenchimento"]
[null,"Código","Serviços de Analytics (por demanda)"]
[null,93,"Serviço de BI (Visualização de Dados) - adquirido por usuário","demanda","usuário/mês",{"v":0.3,"d":"0.3000"},null,{"$f":"F7*G7","v":0},null,null,"Informe a quantidade de usuários por mês"]
[null,94,"Serviço de BI (Visualização de Dados) - adquirido por instância","demanda","instância/hora",0.8532,null,{"$f":"F8*G8","v":0},null,null,"Informe a quantidade instância e multiplique pela quantidade de horas estimadas no mês"]
[null,"Código","Serviço de distribuição de Conteúdo"]
[null,95,"Tráfego de rede do CDN","demanda","Gigabyte/Mês",{"v":0.145,"d":"0.1450"},null,{"$f":"F10*G10","v":0},null,null,"Informe a quantidade estimada em GB por mês\t"]
[{"$nulls":5},"Total Mensal",null,{"$f":"SUM(H7:H10)","v":0},{"$f":"SUM(H7:H10)","v":0}]
[{"$nulls":5},"Total 24 meses",null,{"$f":"H11*24","v":0},{"$f":"I11*24","v":0}]

{"sheet":"SGORN","index":6,"n_rows":16,"n_cols":9,"rows_kept":16,"merged":[[2,1,2,6],[5,5,5,6]]}
[]
[]
[null,"Serviço de Gerenciamento e Operação de recursos em nuvem - SGORN",{"$nulls":6},"Instruções"]
[]
[null,"Item","Descrição do serviço","Unidade","Volume Total Instâncias/Mês gerenciadas.","Justificativa / Memória de cálculo",null,null,"Utilize a tabela auxiliar para projetar a quantidade estimada por projeto ao longo do contrato"]
[null,null,"Serviço de Gerenciamento e Operação de recursos em nuvem","Instância gerenciada por mês ",{"$f":"E16","v":0}]
[{"$nulls":3},"Total",{"$f":"E6","v":0}]
[]
[]
[]
[null,"Identificação do Projeto","Quantidade de Instâncias Gerenciadas","Periodo em Meses ","Volume total"]
[null,"Projeto A",0,0,{"$f":"D12*C12","v":0}]
[null,"Projeto B",0,0,{"$f":"D13*C13","v":0}]
[null,"Projeto C",0,0,{"$f":"D14*C14","v":0}]
[null,"Projeto D",0,0,{"$f":"D15*C15","v":0}]
[null,"Total",null,null,{"$f":"SUM(E12:E15)","v":0}]

{"sheet":"SMRC","index":7,"n_rows":15,"n_cols":12,"rows_kept":15,"merged":[[2,1,2,9],[4,5,4,8],[5,5,5,8],[10,3,10,4],[11,3,11,4],[12,3,12,4],[13,3,13,4],[14,3,14,4],[15,3,15,4]]}
[]
[]
[null,"Serviço de Migração de Recursos Computacionais - SMRC",{"$nulls":9},"Instruções"]
[]
[null,"Item","Descrição do serviço","Unidade","Volume Total migradas","Justificativa / Memória de cálculo"]
[null,null,"Serviço de Gerenciamento e Operação de recursos em nuvem","Instância de Computação migrada  ",{"$f":"C15","v":0}]
[{"$nulls":4},"Total 24 meses",null,null,{"$f":"E6","v":0}]
[]
[]
[null,"Identificação do Projeto","Quantidade estimada de instâncias a serem migradas"]
[null,"Projeto A",0]
[null,"Projeto B",0]
[null,"Projeto C",0]
[null,"Projeto D",0]
[null,"Total",{"$f":"SUM(B11:C14)","v":0}]

{"sheet":"SMBD","index":8,"n_rows":15,"n_cols":11,"rows_kept":15,"merged":[[2,1,2,8],[4,5,4,8],[5,5,5,8],[10,3,10,4],[11,3,11,4],[12,3,12,4],[13,3,13,4],[14,3,14,4]]}
[]
[]
[null,"Serviço de Migração de Banco de Dados - SMBD",{"$nulls":8},"Instruções"]
[]
[null,"Item","Descrição do serviço","Unidade","Volume Total migradas","Justificativa / Memória de cálculo"]
[null,null,"Serviço de Gerenciamento e Operação de recursos em nuvem","Instância de Computação migrada  "]
[{"$nulls":4},"Total ",null,null,{"$f":"E6","v":0}]
[]
[]
[null,"Identificação do Projeto","Quantidade estimada de instâncias a serem migradas"]
[null,"Projeto A",0]
[null,"Projeto B",0]
[null,"Projeto C",0]
[null,"Projeto D",0]
[null,"Total",{"$f":"SUM(B11:C14)","v":0}]

{"sheet":"Treinamento","index":9,"n_rows":6,"n_cols":7,"rows_kept":6,"merged":[[2,1,2,4],[2,6,2,7],[3,6,3,7],[4,6,4,7],[5,6,5,7],[6,6,6,7],[7,6,7,7],[8,6,8,7],[9,6,9,7],[10,6,10,7],[11,6,11,7],[12,6,12,7]]}
[]
[]
[null,"Treinamento",{"$nulls":4},"Instruções"]
[]
[null,"Item","Descrição do serviço","Unidade","Qtde. total ao longo do contrato"]
[null,null,"Treinamento","Turma de treinamento ",0]

{"sheet":"Planilha1","index":10,"n_rows":8,"n_cols":1,"rows_kept":8,"hidden":true}
["Selecionar"]
["Abordagem híbrida"]
["Migração completa para nuvem pública"]
[]
[]
["Selecionar"]
["SIM"]
["NÃO"]

{"sheet":"Resultado","index":11,"n_rows":17,"n_cols":11,"rows_kept":17,"merged":[[2,1,2,9],[5,1,5,5]]}
[]
[]
[null,"Results",{"$nulls":8},"Observações"]
[]
[]
[null,"LOTE ÚNICO"]
[null,"ITEM","Código CATSER","Descrição CATSER","UNIDADE","QUANTIDADE ESTIMADA 24 meses","VALOR UNITÁRIO","VALOR TOTAL 24 MESES"]
[null,"1 - Serviços de Computação em nuvem – Infraestrutura como Serviço (IaaS)",26050,"Infraestrutura como Serviço - IaaS","Unidade de Serviço de Computação em Nuvem -USN",{"$f":"ROUNDUP('IaaS - USN'!I78,0)","v":0},{"v":9.290000000000001,"d":"R$ 9.29"},{"$f":"G8*F8","v":{"v":0,"d":"R$0.00"}}]
[null,"2- Serviços de Computação em nuvem – Plataforma como Serviço (PaaS)",26069,"Plataforma como Serviço - PaaS","Unidade de Serviço de Computação em Nuvem -USN",{"$f":"ROUNDUP('PaaS - USN'!I37,0)","v":0},{"v":11.1775,"d":"R$ 11.18"},{"$f":"G9*F9","v":{"v":0,"d":"R$0.00"}}]
[null,"3 - Serviços de Computação em nuvem – Software como Serviço (SaaS)",26077,"Software como Serviço - SaaS","Unidade de Serviço de Computação em Nuvem -USN",{"$f":"ROUNDUP('SaaS - USN'!I12,0)","v":0},{"v":9.424000000000001,"d":"R$ 9.42"},{"v":0,"d":"R$0.00"}]
[null,"4 – Serviço de Gerenciamento e Operação de recursos em nuvem",27081,"Serviços de integração de sistemas em Tecnologia da Informação e Comunicação (TIC)","Instância gerenciada por mês",{"$f":"ROUNDUP(SGORN!E7,0)","v":0},{"v":79.25,"d":"R$ 79.25"},{"v":0,"d":"R$0.00"}]
[null,"5 - Serviço de Migração de Recursos Computacionais",27081,"Serviços de integração de sistemas em Tecnologia da Informação e Comunicação (TIC)","Instância de Computação migrada",{"$f":"ROUNDUP(SMRC!H7,0)","v":0},{"v":240.76666666666665,"d":"R$ 240.77"},{"v":0,"d":"R$0.00"}]
[null,"6 - Serviço de Migração de Banco de dados",27081,"Serviços de integração de sistemas em Tecnologia da Informação e Comunicação (TIC)","Instância de Banco de Dados migrada",{"$f":"SMRC!H7","v":0},{"v":250.76666666666665,"d":"R$ 250.77"},{"v":0,"d":"R$0.00"}]
[null,"7 - Treinamento",3840,"Treinamento Informática - Sistema / Software","Turma de treinamento",{"$f":"Treinamento!E6","v":0},{"v":51265.2925,"d":"R$ 51,265.29"},{"v":0,"d":"R$0.00"}]
[]
[{"$nulls":6},"VALOR TOTAL (24 meses):",{"$f":"SUM(H8:H14)","v":{"v":0,"d":"R$0.00"}}]
[null,"Atenção: Os valores Unitários estão sujeitos a alteração apóse realização de pesquisa de mercado considerando a volumetria registrada nest IRP."]